fUST/lending_fUST_20250617
["ID","MTS","AMOUNT","RATE_DAILY","PERIOD"]
[366287703,1750174267782,-460.0,0.00024191,6]
[366287704,1750174267794,-460.0,0.00024191,6]
[366287705,1750174267901,-474.99872257,0.00024191,6]
[366287706,1750174267915,-460.0,0.00024191,6]
[366287707,1750174267926,-460.0,0.00024191,6]
[366287708,1750174267936,-460.0,0.00024191,6]
[366287709,1750174267951,-460.0,0.00024191,6]
[366287710,1750174267962,-460.0,0.00024191,6]
[366287711,1750174267972,-460.0,0.00024191,6]
[366287712,1750174267983,-460.0,0.00024191,6]
[366287713,1750174267993,-308.52414954,0.00024191,6]
[366287714,1750174268003,-460.0,0.00024191,6]
[366287715,1750174268012,-460.0,0.00024191,6]
[366287716,1750174268024,-7412.5,0.00024191,6]
[366287717,1750174268034,-3773.16,0.00024191,6]
[366287718,1750174268044,-202.07196316,0.00024191,6]
[366287719,1750174268054,-460.0,0.00024191,6]
[366287720,1750174268065,-460.0,0.00024191,6]
[366287721,1750174268075,-460.0,0.00024191,6]
[366287722,1750174268085,-460.0,0.00024191,6]
[366287723,1750174268095,-500.0,0.00024191,6]
[366287724,1750174268105,-627.7,0.00024191,6]
[366287725,1750174268115,-460.0,0.00024191,6]
[366287726,1750174268125,-460.0,0.00024191,6]
[366287727,1750174268135,-460.0,0.00024191,6]
[366287728,1750174268146,-1811.58,0.00024191,6]
[366287729,1750174268156,-460.0,0.00024191,6]
[366287730,1750174268166,-1990.04,0.00024191,6]
[366287731,1750174268176,-460.0,0.00024191,6]
[366287732,1750174268185,-460.0,0.00024191,6]
[366287733,1750174268197,-510.25,0.00024191,6]
[366287734,1750174268207,-460.0,0.00024191,6]
[366287735,1750174268217,-460.0,0.00024191,6]
[366287736,1750174268228,-460.0,0.00024191,6]
[366287737,1750174268238,-870.21,0.00024191,6]
[366287738,1750174268248,-701.9,0.00024191,6]
[366287739,1750174268257,-460.0,0.00024191,6]
[366287740,1750174268267,-7264.29,0.00024191,6]
[366287741,1750174268276,-460.0,0.00024191,6]
[366287742,1750174268285,-880.46,0.00024191,6]
[366287743,1750174268295,-460.0,0.00024191,6]
[366287744,1750174268304,-460.0,0.00024191,6]
[366287745,1750174268314,-1820.7,0.00024191,6]
[366287746,1750174268324,-1236.01,0.00024191,6]
[366287747,1750174268333,-737.78,0.00024191,6]
[366287748,1750174268343,-460.0,0.00024191,6]
[366287749,1750174268354,-460.0,0.00024191,6]
[366287750,1750174268364,-487.98,0.00024191,6]
[366287751,1750174268374,-460.0,0.00024191,6]
[366287752,1750174268384,-1562.53,0.00024191,6]
[366287753,1750174268394,-9021.12,0.00024191,6]
[366287754,1750174268405,-209.53432683,0.00024191,6]
[366287755,1750174268416,-460.0,0.00024191,6]
[366287756,1750174268426,-460.0,0.00024191,6]
[366287757,1750174268436,-524.73,0.00024191,6]
[366287758,1750174268453,-460.0,0.00024191,6]
[366287759,1750174268463,-460.0,0.00024191,6]
[366287760,1750174268474,-1045.11,0.00024191,6]
[366287761,1750174268484,-460.0,0.00024191,6]
[366287762,1750174268495,-460.0,0.00024191,6]
[366287763,1750174268505,-1368.49,0.00024191,6]
[366287764,1750174268516,-460.0,0.00024191,6]
[366287765,1750174268527,-460.0,0.00024191,6]
[366287766,1750174268537,-179.218212,0.00024191,7]
[366287767,1750174268548,-460.0,0.00024191,6]
[366287768,1750174268559,-440.0,0.00024191,6]
[366287769,1750174268570,-460.0,0.00024191,6]
[366287770,1750174268581,-151.0,0.00024191,2]
[366287771,1750174268591,-151.0,0.00024191,2]
[366287772,1750174268601,-460.0,0.00024191,6]
[366287773,1750174268612,-460.0,0.00024191,6]
[366287774,1750174268622,-460.0,0.00024191,6]
[366287775,1750174268632,-1329.89,0.00024191,6]
[366287776,1750174268642,-460.0,0.00024191,6]
[366287777,1750174268653,-152.85391825,0.00024191,6]
[366287778,1750174268663,-460.0,0.00024191,6]
[366287779,1750174268673,-159.86675572,0.00024191,6]
[366287780,1750174268684,-460.0,0.00024191,6]
[366287781,1750174268698,-700.33,0.00024191,6]
[366287782,1750174268708,-460.0,0.00024191,6]
[366287783,1750174268718,-151.0,0.00024191,6]
[366287784,1750174268728,-163.87460005,0.00024191,6]
[366287785,1750174268738,-151.0,0.00024191,6]
[366287786,1750174268748,-460.0,0.00024191,6]
[366287787,1750174268758,-151.75041417,0.00024191,6]
[366287788,1750174268769,-151.0,0.00024191,6]
[366287789,1750174268779,-151.0,0.00024191,2]
[366287790,1750174268789,-151.0,0.00024191,2]
[366287791,1750174268799,-460.0,0.00024191,6]
[366287792,1750174268809,-151.0,0.00024191,6]
[366287793,1750174268819,-460.0,0.00024191,6]
[366287794,1750174268828,-460.0,0.00024191,6]
[366287795,1750174268838,-152.14900843,0.00024191,6]
[366287796,1750174268848,-494.54,0.00024191,6]
[366287797,1750174268858,-830.52,0.00024191,6]
[366287798,1750174268867,-1913.95,0.00024191,6]
[366287799,1750174268877,-460.0,0.00024191,6]
[366287800,1750174268887,-151.0,0.00024191,6]
[366287801,1750174268897,-151.0,0.00024191,2]
[366287802,1750174268907,-460.0,0.00024191,6]
[366287803,1750174268917,-460.0,0.00024191,6]
[366287804,1750174268927,-1086.38,0.00024191,6]
[366287805,1750174268937,-460.0,0.00024191,6]
[366287806,1750174268949,-1179.2,0.00024191,6]
[366287807,1750174268960,-4554.0,0.00024191,6]
[366287808,1750174268970,-460.0,0.00024191,6]
[366287809,1750174268980,-460.0,0.00024191,6]
[366287810,1750174268991,-460.0,0.00024191,6]
[366287811,1750174269001,-460.0,0.00024191,6]
[366287812,1750174269011,-460.0,0.00024191,6]
[366287813,1750174269022,-151.75484731,0.00024191,6]
[366287814,1750174269031,-151.0,0.00024191,6]
[366287815,1750174269041,-460.0,0.00024191,6]
[366287816,1750174269050,-151.0,0.00024191,6]
[366287817,1750174269060,-151.0,0.00024191,6]
[366287818,1750174269069,-151.0,0.00024191,2]
[366287819,1750174269079,-1986.9,0.00024191,6]
[366287820,1750174269088,-7071.28,0.00024191,6]
[366287821,1750174269098,-151.0,0.00024191,6]
[366287822,1750174269109,-151.0,0.00024191,6]
[366287823,1750174269118,-460.0,0.00024191,6]
[366287824,1750174269127,-460.0,0.00024191,6]
[366287825,1750174269137,-460.0,0.00024191,6]
[366287826,1750174269147,-460.0,0.00024191,6]
[366287827,1750174269157,-1009.27,0.00024191,6]
[366287828,1750174269167,-2923.79,0.00024191,6]
[366287829,1750174269176,-151.0,0.00024191,7]
[366287830,1750174269187,-151.0,0.00024191,7]
[366287831,1750174269198,-460.0,0.00024191,6]
[366287832,1750174269208,-460.0,0.00024191,6]
[366287833,1750174269218,-460.0,0.00024191,6]
[366287834,1750174269229,-1743.26,0.00024191,6]
[366287835,1750174269239,-1363.15,0.00024191,6]
[366287836,1750174269248,-1055.94,0.00024191,6]
[366287837,1750174269258,-8763.84,0.00024191,6]
[366287838,1750174269267,-257.42543081,0.00024191,6]
[366287839,1750174269277,-985.52,0.00024191,6]
[366287840,1750174269287,-460.0,0.00024191,6]
[366287841,1750174269297,-270.0,0.00024191,6]
[366287842,1750174269307,-631.51,0.00024191,6]
[366287843,1750174269317,-986.69,0.00024191,6]
[366287844,1750174269326,-448.30399999,0.00024191,6]
[366287845,1750174269336,-460.0,0.00024191,6]
[366287846,1750174269346,-460.0,0.00024191,6]
[366287847,1750174269356,-547.86262822,0.00024191,6]
[366287848,1750174269365,-460.0,0.00024191,6]
[366287849,1750174269375,-1632.77,0.00024191,6]
[366287850,1750174269385,-151.0,0.00024191,7]
[366287851,1750174269394,-1240.6,0.00024191,6]
[366287852,1750174269404,-151.0,0.00024191,7]
[366287853,1750174269414,-460.0,0.00024191,6]
[366287854,1750174269423,-460.0,0.00024191,6]
[366287855,1750174269434,-460.0,0.00024191,6]
[366287856,1750174269446,-2777.92,0.00024191,6]
[366287857,1750174269456,-9801.69,0.00024191,6]
[366287858,1750174269466,-460.0,0.00024191,6]
[366287859,1750174269475,-1074.78,0.00024191,6]
[366287860,1750174269485,-460.0,0.00024191,6]
[366287861,1750174269495,-1650.79,0.00024191,6]
[366287862,1750174269504,-1711.03,0.00024191,6]
[366287863,1750174269514,-460.0,0.00024191,6]
[366287864,1750174269523,-460.0,0.00024191,6]
[366287865,1750174269532,-4214.03,0.00024191,6]
[366287866,1750174269542,-460.0,0.00024191,6]
[366287867,1750174269551,-7214.71,0.00024191,6]
[366287868,1750174269562,-2862.09,0.00024191,6]
[366287869,1750174269571,-340.0,0.00024191,6]
[366287870,1750174269581,-460.0,0.00024191,6]
[366287871,1750174269590,-4869.04,0.00024191,6]
[366287872,1750174269600,-366.18886522,0.00024191,6]
[366287873,1750174269610,-3392.84,0.00024191,6]
[366287874,1750174269619,-847.24,0.00024191,6]
[366287875,1750174269630,-460.0,0.00024191,6]
[366287876,1750174269639,-2534.15,0.00024191,6]
[366287877,1750174269648,-460.0,0.00024191,6]
[366287878,1750174269658,-460.0,0.00024191,6]
[366287879,1750174269668,-460.0,0.00024191,6]
[366287880,1750174269678,-670.65,0.00024191,6]
[366287881,1750174269689,-460.0,0.00024191,6]
[366287882,1750174269699,-460.0,0.00024191,6]
[366287883,1750174269708,-460.0,0.00024191,6]
[366287884,1750174269718,-460.0,0.00024191,6]
[366287885,1750174269728,-186.11276352,0.00024191,6]
[366287886,1750174269738,-1973.93,0.00024191,6]
[366287887,1750174269749,-460.0,0.00024191,6]
[366287888,1750174269759,-576.75080527,0.00024191,6]
[366287889,1750174269876,-460.0,0.00024191,6]
[366287890,1750174269887,-460.0,0.00024191,6]
[366287891,1750174269897,-460.0,0.00024191,6]
[366287892,1750174269907,-460.0,0.00024191,6]
[366287893,1750174269917,-468.56,0.00024191,6]
[366287894,1750174269927,-460.0,0.00024191,6]
[366287895,1750174269942,-460.0,0.00024191,6]
[366287896,1750174269952,-460.0,0.00024191,6]
[366287897,1750174269962,-460.0,0.00024191,6]
[366287898,1750174269972,-921.03,0.00024191,6]
[366287899,1750174269982,-460.0,0.00024191,6]
[366287900,1750174269992,-460.0,0.00024191,6]
[366287901,1750174270002,-717.1,0.00024191,6]
[366287902,1750174270012,-470.59,0.00024191,6]
[366287903,1750174270022,-1493.61,0.00024191,6]
[366287904,1750174270034,-460.0,0.00024191,6]
[366287905,1750174270045,-460.0,0.00024191,6]
[366287906,1750174270055,-460.0,0.00024191,6]
[366287907,1750174270065,-3179.23,0.00024191,6]
[366287908,1750174270075,-460.0,0.00024191,6]
[366287909,1750174270085,-855.43,0.00024191,6]
[366287910,1750174270094,-1710.65,0.00024191,6]
[366287911,1750174270104,-460.0,0.00024191,6]
[366287912,1750174270114,-2012.27,0.00024191,6]
[366287913,1750174270123,-2354.06,0.00024191,6]
[366287914,1750174270133,-460.0,0.00024191,6]
[366287915,1750174270143,-10545.92,0.00024191,6]
[366287916,1750174270152,-460.0,0.00024191,6]
[366287917,1750174270162,-460.0,0.00024191,6]
[366287918,1750174270172,-613.88,0.00024191,6]
[366287919,1750174270181,-460.0,0.00024191,6]
[366287920,1750174270194,-460.0,0.00024191,6]
[366287921,1750174270204,-407.74457464,0.00024191,6]
[366287922,1750174270214,-460.0,0.00024191,6]
[366287923,1750174270224,-3722.2,0.00024191,6]
[366287924,1750174270234,-151.0,0.00024191,7]
[366287925,1750174270245,-460.0,0.00024191,6]
[366287926,1750174270255,-151.0,0.00024191,7]
[366287927,1750174270265,-9699.48,0.00024191,6]
[366287928,1750174270275,-460.0,0.00024191,6]
[366287929,1750174270285,-387.51931857,0.00024191,6]
[366287930,1750174270294,-594.5,0.00024191,6]
[366287931,1750174270304,-460.0,0.00024191,6]
[366287932,1750174270314,-431.03267941,0.00024191,6]
[366287933,1750174270323,-460.0,0.00024191,6]
[366287934,1750174270333,-318.48755791,0.00024191,6]
[366287935,1750174270342,-460.0,0.00024191,6]
[366287936,1750174270352,-460.0,0.00024191,6]
[366287937,1750174270362,-460.0,0.00024191,6]
[366287938,1750174270371,-460.0,0.00024191,6]
[366287939,1750174270381,-151.0,0.000242,7]
[366287940,1750174270391,-172.177474,0.000242,7]
[366287941,1750174270400,-172.177474,0.000242,7]
[366287942,1750174270410,-151.0,0.000242,7]
[366287943,1750174270420,-151.0,0.000242,7]
[366287944,1750174270430,-850.0,0.000242,5]
[366287945,1750174270440,-261.407106,0.000242,7]
[366287946,1750174270450,-261.407106,0.000242,7]
[366287947,1750174270460,-699.0,0.000242,2]
[366287948,1750174270470,-235.54694619,0.00024218,6]
[366287949,1750174270479,-552.10257737,0.00024218,6]
[366287950,1750174270489,-151.0,0.00024218,6]
[366287951,1750174270499,-151.0,0.00024218,6]
[366287952,1750174270509,-201.31936716,0.00024218,6]
[366287953,1750174270519,-151.0,0.00024218,6]
[366287954,1750174270529,-151.0,0.00024218,6]
[366287955,1750174270539,-152.4749778,0.00024218,6]
[366287956,1750174270549,-151.0,0.00024218,6]
[366287957,1750174270559,-151.0,0.00024218,6]
[366287958,1750174270569,-151.0,0.00024219,7]
[366287959,1750174270578,-151.0,0.00024219,7]
[366287960,1750174270588,-151.778115,0.00024219,7]
[366287961,1750174270598,-151.0,0.00024219,7]
[366287962,1750174270608,-151.0,0.00024219,7]
[366287963,1750174270619,-172.177474,0.00024219,7]
[366287964,1750174270628,-172.177474,0.00024219,7]
[366287965,1750174270638,-151.0,0.00024219,7]
[366287966,1750174270648,-151.0,0.00024219,7]
[366287967,1750174270657,-460.0,0.00024219,6]
[366287968,1750174270667,-460.0,0.00024219,6]
[366287969,1750174270678,-462.14,0.00024219,6]
[366287970,1750174270690,-151.0,0.00024219,7]
[366287971,1750174270700,-169.555431,0.00024219,7]
[366287972,1750174270709,-460.0,0.00024219,6]
[366287973,1750174270719,-460.0,0.00024219,6]
[366287974,1750174270728,-151.0,0.00024219,7]
[366287975,1750174270738,-460.0,0.00024219,6]
[366287976,1750174270748,-460.0,0.00024219,6]
[366287977,1750174270757,-460.0,0.00024219,6]
[366287978,1750174270767,-460.0,0.00024219,6]
[366287979,1750174270777,-360.0,0.00024219,6]
[366287980,1750174270787,-460.0,0.00024219,6]
[366287981,1750174270797,-1313.94,0.00024219,6]
[366287982,1750174270806,-529.97711309,0.00024219,6]
[366287983,1750174270816,-163.756301,0.00024219,7]
[366287984,1750174270825,-460.0,0.00024219,6]
[366287985,1750174270835,-163.756301,0.00024219,7]
[366287986,1750174270844,-460.0,0.00024219,6]
[366287987,1750174270854,-460.0,0.00024219,6]
[366287988,1750174270864,-460.0,0.00024219,6]
[366287989,1750174270873,-472.27569026,0.00024219,6]
[366287990,1750174270883,-460.0,0.00024219,6]
[366287991,1750174270892,-460.0,0.00024219,6]
[366287992,1750174270902,-460.0,0.00024219,6]
[366287993,1750174270911,-460.0,0.00024219,6]
[366287994,1750174270921,-460.0,0.00024219,6]
[366287995,1750174270930,-496.7482233,0.00024219,6]
[366287996,1750174270940,-460.0,0.00024219,6]
[366287997,1750174270951,-213.22763209,0.00024219,6]
[366287998,1750174270960,-460.0,0.00024219,6]
[366287999,1750174270970,-460.0,0.00024219,6]
[366288000,1750174270979,-460.0,0.00024219,6]
[366288001,1750174270990,-460.0,0.00024219,6]
[366288002,1750174270999,-500.0,0.00024219,6]
[366288003,1750174271008,-460.0,0.00024219,6]
[366288004,1750174271019,-151.0,0.00024219,7]
[366288005,1750174271028,-460.0,0.00024219,6]
[366288006,1750174271038,-300.0,0.00024219,6]
[366288007,1750174271047,-460.0,0.00024219,6]
[366288008,1750174271056,-151.0,0.00024219,7]
[366288009,1750174271066,-151.0,0.00024219,7]
[366288010,1750174271076,-460.0,0.00024219,6]
[366288011,1750174271085,-460.0,0.00024219,6]
[366288012,1750174271094,-460.0,0.00024219,6]
[366288013,1750174271104,-422.34541584,0.00024219,6]
[366288014,1750174271113,-460.0,0.00024219,6]
[366288015,1750174271123,-568.9505723,0.00024219,6]
[366288016,1750174271133,-378.29040985,0.00024219,6]
[366288017,1750174271142,-460.0,0.00024219,6]
[366288018,1750174271151,-357.84091838,0.00024219,6]
[366288019,1750174271160,-460.0,0.00024219,6]
[366288020,1750174271170,-2363.96,0.00024219,2]
[366288021,1750174271179,-460.0,0.00024219,6]
[366288022,1750174271191,-460.0,0.00024219,6]
[366288023,1750174271200,-460.0,0.00024219,6]
[366288024,1750174271210,-460.0,0.00024219,6]
[366288025,1750174271219,-1327.76,0.00024219,6]
[366288026,1750174271229,-460.0,0.00024219,6]
[366288027,1750174271238,-595.65,0.00024219,6]
[366288028,1750174271247,-460.0,0.00024219,6]
[366288029,1750174271257,-460.0,0.00024219,6]
[366288030,1750174271267,-460.0,0.00024219,6]
[366288031,1750174271276,-460.0,0.00024219,6]
[366288032,1750174271286,-460.0,0.00024219,6]
[366288033,1750174271296,-460.0,0.00024219,6]
[366288034,1750174271306,-460.0,0.00024219,6]
[366288035,1750174271316,-460.0,0.00024219,6]
[366288036,1750174271326,-460.0,0.00024219,6]
[366288037,1750174271335,-556.07524853,0.00024219,6]
[366288038,1750174271344,-460.0,0.00024219,6]
[366288039,1750174271354,-460.0,0.00024219,6]
[366288040,1750174271363,-442.39562979,0.00024219,6]
[366288041,1750174271372,-460.0,0.00024219,6]
[366288042,1750174271382,-460.0,0.00024219,6]
[366288043,1750174271391,-460.0,0.00024219,6]
[366288044,1750174271401,-460.0,0.00024219,6]
[366288045,1750174271410,-460.0,0.00024219,6]
[366288046,1750174271419,-460.0,0.00024219,6]
[366288047,1750174271428,-460.0,0.00024219,6]
[366288048,1750174271438,-1288.87,0.00024219,6]
[366288049,1750174271449,-460.0,0.00024219,6]
[366288050,1750174271458,-460.0,0.00024219,6]
[366288051,1750174271467,-460.0,0.00024219,6]
[366288052,1750174271476,-1647.5,0.00024219,2]
[366288053,1750174271485,-1167.07,0.00024219,6]
[366288054,1750174271495,-460.0,0.00024219,6]
[366288055,1750174271504,-460.0,0.00024219,6]
[366288056,1750174271514,-460.0,0.00024219,6]
[366288057,1750174271523,-460.0,0.00024219,6]
[366288058,1750174271645,-440.0,0.00024219,6]
[366288059,1750174271658,-687.51,0.00024219,6]
[366288060,1750174271668,-460.0,0.00024219,6]
[366288061,1750174271678,-1524.41,0.00024219,6]
[366288062,1750174271688,-460.0,0.00024219,6]
[366288063,1750174271700,-460.0,0.00024219,6]
[366288064,1750174271710,-460.0,0.00024219,6]
[366288065,1750174271720,-460.0,0.00024219,6]
[366288066,1750174271730,-460.0,0.00024219,6]
[366288067,1750174271739,-460.0,0.00024219,6]
[366288068,1750174271749,-407.62562123,0.00024219,6]
[366288069,1750174271760,-460.0,0.00024219,6]
[366288070,1750174271769,-151.0,0.00024219,7]
[366288071,1750174271780,-460.0,0.00024219,6]
[366288072,1750174271789,-460.0,0.00024219,6]
[366288073,1750174271799,-460.0,0.00024219,6]
[366288074,1750174271809,-221.60439,0.00024219,7]
[366288075,1750174271818,-460.0,0.00024219,6]
[366288076,1750174271828,-553.7,0.00024219,6]
[366288077,1750174271838,-221.60439,0.00024219,7]
[366288078,1750174271848,-460.0,0.00024219,6]
[366288079,1750174271858,-1811.52,0.00024219,6]
[366288080,1750174271868,-460.0,0.00024219,6]
[366288081,1750174271878,-460.0,0.00024219,6]
[366288082,1750174271887,-460.0,0.00024219,6]
[366288083,1750174271897,-598.09723912,0.00024219,6]
[366288084,1750174271906,-460.0,0.00024219,6]
[366288085,1750174271916,-460.0,0.00024219,6]
[366288086,1750174271926,-460.0,0.00024219,6]
[366288087,1750174271942,-460.0,0.00024219,6]
[366288088,1750174271952,-1098.21,0.00024219,6]
[366288089,1750174271962,-151.0,0.00024219,7]
[366288090,1750174271972,-151.0,0.00024219,7]
[366288091,1750174271982,-460.0,0.00024219,6]
[366288092,1750174271993,-460.0,0.00024219,6]
[366288093,1750174272002,-460.0,0.00024219,6]
[366288094,1750174272012,-265.17162674,0.00024219,6]
[366288095,1750174272023,-527.27497848,0.00024219,6]
[366288096,1750174272032,-308.59621826,0.00024219,6]
[366288097,1750174272042,-460.0,0.00024219,6]
[366288098,1750174272052,-762.93,0.00024219,6]
[366288099,1750174272062,-460.0,0.00024219,6]
[366288100,1750174272072,-460.0,0.00024219,6]
[366288101,1750174272082,-460.0,0.00024219,6]
[366288102,1750174272092,-460.0,0.00024219,6]
[366288103,1750174272103,-460.0,0.00024219,6]
[366288104,1750174272115,-460.0,0.00024219,6]
[366288105,1750174272125,-261.407106,0.00024219,7]
[366288106,1750174272135,-261.407106,0.00024219,7]
[366288107,1750174272145,-460.0,0.00024219,6]
[366288108,1750174272156,-658.16,0.00024219,6]
[366288109,1750174272166,-460.0,0.00024219,6]
[366288110,1750174272176,-300.0,0.00024219,6]
[366288111,1750174272187,-460.0,0.00024219,6]
[366288112,1750174272202,-460.0,0.00024219,6]
[366288113,1750174272212,-661.81,0.00024219,6]
[366288114,1750174272223,-453.70154449,0.00024219,6]
[366288115,1750174272232,-460.0,0.00024219,6]
[366288116,1750174272242,-488.57,0.00024219,6]
[366288117,1750174272252,-460.0,0.00024219,6]
[366288118,1750174272262,-460.0,0.00024219,6]
[366288119,1750174272272,-460.0,0.00024219,6]
[366288120,1750174272283,-460.0,0.00024219,6]
[366288121,1750174272293,-337.86369022,0.00024219,6]
[366288122,1750174272304,-460.0,0.00024219,6]
[366288123,1750174272313,-366.28113671,0.00024219,6]
[366288124,1750174272323,-460.0,0.00024219,6]
[366288125,1750174272333,-669.32,0.00024219,6]
[366288126,1750174272343,-460.0,0.00024219,6]
[366288127,1750174272352,-670.03,0.00024219,6]
[366288128,1750174272362,-460.0,0.00024219,6]
[366288129,1750174272372,-460.0,0.00024219,6]
[366288130,1750174272381,-460.0,0.00024219,6]
[366288131,1750174272391,-460.0,0.00024219,6]
[366288132,1750174272401,-529.15865952,0.00024219,6]
[366288133,1750174272410,-420.0,0.00024219,6]
[366288134,1750174272420,-460.0,0.00024219,6]
[366288135,1750174272429,-460.0,0.00024219,6]
[366288136,1750174272439,-460.0,0.00024219,6]
[366288137,1750174272450,-460.0,0.00024219,6]
[366288138,1750174272460,-460.0,0.00024219,6]
[366288139,1750174272470,-460.0,0.00024219,6]
[366288140,1750174272479,-460.0,0.00024219,6]
[366288141,1750174272489,-460.0,0.00024219,6]
[366288142,1750174272499,-460.0,0.00024219,6]
[366288143,1750174272508,-460.0,0.00024219,6]
[366288144,1750174272518,-460.0,0.00024219,6]
[366288145,1750174272527,-460.0,0.00024219,6]
[366288146,1750174272537,-460.0,0.00024219,6]
[366288147,1750174272546,-460.0,0.00024219,6]
[366288148,1750174272557,-460.0,0.00024219,6]
[366288149,1750174272567,-460.0,0.00024219,6]
[366288150,1750174272577,-460.0,0.00024219,6]
[366288151,1750174272587,-460.0,0.00024219,6]
[366288152,1750174272597,-460.0,0.00024219,6]
[366288153,1750174272608,-460.0,0.00024219,6]
[366288154,1750174272617,-460.0,0.00024219,6]
[366288155,1750174272627,-460.0,0.00024219,6]
[366288156,1750174272636,-460.0,0.00024219,6]
[366288157,1750174272646,-460.0,0.00024219,6]
[366288158,1750174272656,-460.0,0.00024219,6]
[366288159,1750174272666,-460.0,0.00024219,6]
[366288160,1750174272676,-460.0,0.00024219,6]
[366288161,1750174272686,-460.0,0.00024219,6]
[366288162,1750174272697,-460.0,0.00024219,6]
[366288163,1750174272707,-392.16805472,0.00024219,6]
[366288164,1750174272717,-460.0,0.00024219,6]
[366288165,1750174272727,-170.13168472,0.00024219,6]
[366288166,1750174272738,-7412.5,0.00024219,6]
[366288167,1750174272748,-460.0,0.00024219,6]
[366288168,1750174272758,-3773.16,0.00024219,6]
[366288169,1750174272768,-338.01891494,0.00024219,6]
[366288170,1750174272777,-288.47230282,0.00024219,6]
[366288171,1750174272787,-460.0,0.00024219,6]
[366288172,1750174272797,-460.0,0.00024219,6]
[366288173,1750174272807,-500.0,0.00024219,6]
[366288174,1750174272816,-627.7,0.00024219,6]
[366288175,1750174272826,-460.0,0.00024219,6]
[366288176,1750174272836,-460.0,0.00024219,6]
[366288177,1750174272846,-460.0,0.00024219,6]
[366288178,1750174272856,-1811.58,0.00024219,6]
[366288179,1750174272866,-460.0,0.00024219,6]
[366288180,1750174272877,-1990.04,0.00024219,6]
[366288181,1750174272886,-460.0,0.00024219,6]
[366288182,1750174272897,-460.0,0.00024219,6]
[366288183,1750174272906,-510.25,0.00024219,6]
[366288184,1750174272916,-37.78437159,0.00024219,6]
[366288185,1750174273386,-494.34284053,0.00019799,2]
[366288186,1750174274314,-1380.0,0.00019799,2]
[366288187,1750174274420,-3125.65715947,0.00019799,2]
[366288188,1750174274430,-213.39869953,0.000239,3]
[366288189,1750174274441,-460.0,0.00024109,6]
[366288190,1750174274457,-460.0,0.00024109,6]
[366288191,1750174274467,-460.0,0.00024109,6]
[366288192,1750174274478,-460.0,0.00024109,6]
[366288193,1750174274488,-460.0,0.00024109,6]
[366288194,1750174274498,-460.0,0.00024109,6]
[366288195,1750174274508,-410.0,0.00024109,6]
[366288196,1750174274518,-460.0,0.00024109,6]
[366288197,1750174274528,-190.58428115,0.00024109,6]
[366288198,1750174274537,-151.0,0.00024136,7]
[366288199,1750174274548,-322.50935835,0.00024136,6]
[366288200,1750174274557,-460.0,0.00024136,6]
[366288201,1750174274568,-460.0,0.00024136,6]
[366288202,1750174274701,-440.0,0.00024136,6]